bitfinex-derivatives/quotes_SOLF0:USTF0_20250623
["timestamp","ask_amount","ask_price","bid_price","bid_amount"]
[1750709322259,39.92,139.75,139.74,7.1517]
[1750709323150,39.92,139.75,139.73,7.1519]
[1750709324153,39.92,139.75,139.74,7.1517]
[1750709327163,39.82,139.78,139.77,7.15]
[1750709331071,39.82,139.81,139.72,2.232]
[1750709331461,39.82,139.81,139.79,7.149]
[1750709332053,39.82,139.81,139.8,7.1486]
[1750709334469,39.82,139.84,139.75,39.82]
[1750709334669,39.82,139.84,139.76,4.5738]
[1750709334970,39.82,139.84,139.82,7.1473]
[1750709335365,39.82,139.84,139.76,4.5738]
[1750709335967,46.9668,139.84,139.76,4.5738]
[1750709336270,39.82,139.84,139.76,4.5738]
[1750709336571,7.1473,139.83,139.76,4.5738]
[1750709337661,7.1476,139.82,139.76,4.5738]
[1750709337863,39.82,139.84,139.76,4.5738]
[1750709338869,39.82,139.84,139.83,7.1471]
[1750709339466,657.3,139.87,139.85,7.1458]
[1750709340372,664.4451,139.87,139.84,7.1464]
[1750709340572,657.3,139.87,139.76,4.5738]
[1750709340869,7.1471,139.83,139.76,4.5738]
[1750709341071,39.82,139.82,139.76,4.5738]
[1750709341266,617.48,139.87,139.76,4.5738]
[1750709341470,657.3,139.87,139.77,39.82]
[1750709341864,657.3,139.87,139.78,2.2292]
[1750709343171,664.4452,139.87,139.83,7.1466]
[1750709343367,657.3,139.87,139.78,2.2292]
[1750709343573,7.1468,139.84,139.81,7.1477]
[1750709343774,39.8,139.83,139.81,7.1477]
[1750709344367,46.9471,139.83,139.8,7.1484]
[1750709344674,39.8,139.83,139.71,617.7]
[1750709344876,7.1478,139.82,139.72,6.9342]
[1750709345073,39.8,139.83,139.72,6.9342]
[1750709345576,46.9475,139.83,139.8,7.1485]
[1750709345974,39.8,139.83,139.72,6.9342]
[1750709346173,39.8,139.83,139.72,21.2395]
[1750709346363,39.82,139.82,139.72,29.87089279]
[1750709346679,39.82,139.82,139.8,7.1483]
[1750709347479,39.82,139.81,139.8,7.1483]
[1750709348173,39.82,139.81,139.72,21.2395]
[1750709348770,39.82,139.81,139.8,7.1486]
[1750709350273,39.82,139.81,139.72,21.2395]
[1750709350782,39.82,139.81,139.73,14.3044]
[1750709350983,39.82,139.81,139.8,7.1483]
[1750709352385,39.82,139.81,139.79,7.1489]
[1750709352574,39.82,139.81,139.74,39.82]
[1750709352974,39.82,139.81,139.8,7.1486]
[1750709356385,39.78,139.86,139.76,14.3005]
[1750709356886,39.78,139.86,139.76,22.93189279]
[1750709357093,39.78,139.86,139.85,7.146]
[1750709357387,39.78,139.86,139.77,14.3003]
[1750709357388,39.78,139.91,139.77,8.63139279]
[1750709357688,39.78,139.91,139.79,22.92949279]
[1750709357889,39.78,139.91,139.8,8.63139279]
[1750709358396,39.78,139.91,139.89,7.1437]
[1750709358890,39.78,139.91,139.88,7.1444]
[1750709359106,39.78,139.91,139.83,39.78]
[1750709359395,39.78,139.91,139.88,7.1442]
[1750709359591,39.78,139.91,139.84,4.6272]
[1750709360096,39.78,139.91,139.84,7.0753]
[1750709360687,39.78,139.91,139.88,7.1442]
[1750709361189,39.78,139.91,139.89,7.1436]
[1750709361382,39.78,139.91,139.84,7.0753]
[1750709362198,39.78,139.91,139.9,7.1435]
[1750709363292,617.62,139.94,139.84,7.0753]
[1750709363487,39.76,139.93,139.84,7.0753]
[1750709363684,39.76,139.93,139.84,69.0753]
[1750709363888,39.76,139.93,139.91,7.1427]
[1750709364088,39.76,139.93,139.84,69.0753]
[1750709364299,39.76,139.93,139.84,7.0753]
[1750709364890,46.9023,139.93,139.84,7.0753]
[1750709366600,46.9023,139.93,139.9,7.1434]
[1750709367693,46.9023,139.93,139.84,7.0753]
[1750709367694,39.76,139.93,139.84,7.0753]
[1750709368799,7.1439,139.9,139.87,7.1447]
[1750709368996,39.76,139.89,139.84,4.6272]
[1750709370597,39.76,139.89,139.88,7.1445]
[1750709371810,39.76,139.92,139.91,7.1429]
[1750709372108,39.76,139.92,139.84,4.6272]
[1750709372304,39.76,139.92,139.9,7.1434]
[1750709373001,39.76,139.92,139.91,7.143]
[1750709374312,617.62,139.94,139.93,7.142]
[1750709374608,657.38,139.94,139.93,7.142]
[1750709377316,4.23485534,139.99,139.96,7.1402]
[1750709377317,39.76,139.97,139.96,7.1402]
[1750709377513,39.76,139.97,139.88,14.2887]
[1750709378111,39.76,139.97,139.95,7.1407]
[1750709378613,43.99485534,139.99,139.89,14.2881]
[1750709378815,43.99485534,139.99,139.9,4.6063]
[1750709379509,51.13385534,139.99,139.9,4.6063]
[1750709379711,43.99485534,139.99,139.89,2.4351]
[1750709380015,7.1407,139.96,139.87,39.76]
[1750709380204,39.74,139.95,139.87,39.76]
[1750709380406,46.8813,139.95,139.87,39.76]
[1750709380715,39.74,139.95,139.86,4.7121]
[1750709380913,39.74,139.95,139.89,7.1437]
[1750709381115,7.1425,139.93,139.89,7.1437]
[1750709381518,39.74,139.95,139.88,7.1443]
[1750709381708,39.74,139.95,139.81,44.4521]
[1750709382216,7.1434,139.91,139.88,7.1444]
[1750709382410,39.74,139.9,139.81,44.4521]
[1750709382608,145.8,139.93,139.84,7.1463]
[1750709382609,39.74,139.89,139.84,7.1463]
[1750709382812,39.74,139.89,139.76,14.3013]
[1750709383312,39.74,139.89,139.75,46.6893]
[1750709383819,7.1462,139.85,139.75,46.6893]
[1750709384113,40.24,139.86,139.76,14.3013]
[1750709384320,40.24,139.85,139.76,14.3013]
[1750709384620,40.24,139.85,139.83,7.1468]
[1750709384821,40.24,139.85,139.76,14.3013]
[1750709385016,47.3863,139.85,139.82,7.1473]
[1750709385814,7.1466,139.84,139.81,7.148]
[1750709386117,40.24,139.85,139.75,47.1893]
[1750709386320,40.24,139.85,139.75,6.9493]
[1750709386516,40.24,139.85,139.75,4.6915]
[1750709388517,7.1468,139.84,139.75,4.6915]
[1750709389725,7.1468,139.84,139.8,7.1482]
[1750709390620,7.1471,139.83,139.8,7.1482]
[1750709391023,7.1471,139.83,139.81,7.1481]
[1750709391220,7.1468,139.84,139.81,7.1481]
[1750709391932,47.3863,139.85,139.82,7.1476]
[1750709392231,47.3863,139.85,139.75,4.6915]
[1750709392735,47.3863,139.85,139.82,7.1473]
[1750709392931,40.24,139.85,139.75,4.6915]
[1750709393124,40.24,139.85,139.82,7.1474]
[1750709393526,47.3864,139.85,139.82,7.1474]
[1750709394036,47.3864,139.85,139.81,7.1479]
[1750709394037,7.1466,139.84,139.81,7.1479]
[1750709394219,40.24,139.85,139.75,4.6915]
[1750709394628,47.3863,139.85,139.82,7.1472]
[1750709394933,47.3863,139.85,139.75,4.6915]
[1750709395130,47.3863,139.85,139.82,7.1475]
[1750709395330,7.1472,139.83,139.76,62.0]
[1750709395529,7.1472,139.83,139.75,4.6915]
[1750709395729,7.1472,139.83,139.8,7.1483]
[1750709396132,7.1468,139.84,139.75,4.6915]
[1750709396428,7.1468,139.84,139.81,7.1478]
[1750709396831,40.24,139.85,139.75,4.6915]
[1750709397134,40.24,139.85,139.82,7.1472]
[1750709397331,40.24,139.85,139.76,2.3213]
[1750709397831,7.1469,139.84,139.76,2.3213]
[1750709398030,7.1469,139.84,139.81,7.1477]
[1750709398728,47.3862,139.85,139.76,2.3213]
[1750709399235,47.3862,139.85,139.82,7.1473]
[1750709399542,47.3862,139.85,139.76,2.3213]
[1750709399838,47.3862,139.85,139.82,7.1472]
[1750709400035,7.1468,139.84,139.76,2.3213]
[1750709400222,40.24,139.85,139.76,2.3213]
[1750709400634,7.1469,139.84,139.76,2.3213]
[1750709400834,40.24,139.85,139.76,2.3213]
[1750709401030,7.1473,139.83,139.76,2.3213]
[1750709401230,40.24,139.85,139.76,2.3213]
[1750709401434,40.24,139.85,139.8,7.1483]
[1750709401634,7.1477,139.82,139.76,2.3213]
[1750709401828,40.28,139.81,139.76,2.3213]
[1750709402032,40.28,139.81,139.8,7.1483]
[1750709402333,40.28,139.81,139.76,2.3213]
[1750709403039,40.28,139.81,139.8,7.1486]
[1750709403628,40.28,139.82,139.76,2.3213]
[1750709404441,40.28,139.82,139.81,7.1481]
[1750709409947,40.28,139.82,139.79,7.1489]
[1750709410245,40.28,139.82,139.76,2.3213]
[1750709411039,40.28,139.82,139.75,4.6915]
[1750709411635,7.1483,139.81,139.78,7.1493]
[1750709412447,7.1487,139.8,139.78,7.1493]
[1750709412639,40.28,139.82,139.75,2.3759]
[1750709412843,40.28,139.82,139.71,7.0051]
[1750709413249,40.28,139.82,139.74,7.1513]
[1750709413446,7.1509,139.76,139.74,7.1513]
[1750709413739,47.7909,139.76,139.74,7.1513]
[1750709413951,40.64,139.76,139.74,7.1513]
[1750709414449,40.64,139.76,139.75,7.1512]
[1750709415550,40.64,139.76,139.74,7.1514]
[1750709415844,40.64,139.76,139.71,7.0051]
[1750709416056,40.64,139.76,139.75,7.1512]
[1750709422459,40.64,139.76,139.71,7.0051]
[1750709422848,47.7909,139.76,139.73,7.1518]
[1750709423149,40.64,139.76,139.67,6.54406279]
[1750709423348,40.64,139.76,139.66,11.42926279]
[1750709423652,40.64,139.76,139.65,130.70546629]
[1750709423653,21.4716,139.74,139.6,6.54406279]
[1750709423849,7.1545,139.69,139.61,6.54406279]
[1750709424049,40.64,139.68,139.61,6.54406279]
[1750709424245,40.64,139.67,139.6,13.83696279]
[1750709424451,40.64,139.66,139.62,7.1576]
[1750709424758,40.64,139.65,139.6,7.2929]
[1750709424956,40.64,139.64,139.63,7.157]
[1750709426761,40.64,139.67,139.66,7.1557]
[1750709427557,40.64,139.67,139.6,7.2929]
[1750709428056,40.64,139.67,139.65,7.156]
[1750709428954,40.64,139.67,139.66,7.1558]
[1750709430359,40.66,139.69,139.61,54.9762]
[1750709430659,40.66,139.69,139.68,7.1548]
[1750709436567,40.66,139.69,139.6,7.2929]
[1750709437177,40.66,139.69,139.68,7.1548]
[1750709439576,624.9122,139.73,139.7,7.1535]
[1750709439765,40.66,139.72,139.7,7.1535]
[1750709440069,618.1,139.8,139.64,14.3136]
[1750709440276,186.7,139.79,139.64,14.3136]
[1750709440472,7.1498,139.78,139.74,7.1513]
[1750709440860,186.7,139.79,139.67,40.66]
[1750709441063,7.1509,139.76,139.73,7.1519]
[1750709441376,40.66,139.75,139.73,7.1519]
[1750709441672,40.66,139.75,139.74,7.1517]
[1750709442462,40.66,139.78,139.68,6.9915]
[1750709442757,40.66,139.78,139.71,40.66]
[1750709442962,40.66,139.84,139.71,40.66]
[1750709443273,40.66,139.84,139.72,14.3052]
[1750709443471,47.8069,139.84,139.8,7.1482]
[1750709443769,47.8069,139.84,139.75,40.18]
[1750709443770,40.66,139.84,139.75,40.18]
[1750709443968,40.66,139.84,139.76,6.7545]
[1750709444165,40.66,139.84,139.81,7.1479]
[1750709444365,40.66,139.84,139.76,6.7545]
[1750709445571,40.66,139.84,139.81,7.1478]
[1750709445873,40.66,139.84,139.76,6.7545]
[1750709446674,40.66,139.84,139.82,7.1476]
[1750709447472,40.66,139.84,139.83,7.1471]
[1750709447674,40.18,139.87,139.79,40.18]
[1750709448576,40.18,139.87,139.86,7.1456]
[1750709448778,40.18,139.87,139.79,40.18]
[1750709449575,47.3253,139.87,139.83,7.1468]
[1750709450070,7.1459,139.86,139.77,40.18]
[1750709450480,47.3253,139.87,139.83,7.1468]
[1750709450678,40.18,139.87,139.83,7.1468]
[1750709451177,7.1458,139.86,139.83,7.1468]
[1750709451374,40.18,139.87,139.77,40.18]
[1750709452166,40.18,139.87,139.8,7.1483]
[1750709452571,7.147,139.84,139.8,7.1483]
[1750709452781,40.16,139.83,139.81,7.1481]
[1750709454865,7.147,139.84,139.81,7.1481]
[1750709455579,40.16,139.87,139.77,40.18]
[1750709455966,40.16,139.87,139.82,7.1473]
[1750709456171,40.16,139.87,139.77,40.18]
[1750709456368,7.1465,139.85,139.77,40.18]
[1750709456568,40.16,139.87,139.77,40.18]
[1750709456774,47.328,139.87,139.77,40.18]
[1750709457484,40.16,139.87,139.77,40.18]
[1750709457878,7.1463,139.85,139.82,7.1473]
[1750709458073,40.16,139.87,139.77,40.18]
[1750709458479,7.1463,139.85,139.82,7.1473]
[1750709458690,40.16,139.87,139.82,7.1473]
[1750709459184,7.1463,139.85,139.82,7.1473]
[1750709459682,47.3054,139.87,139.84,7.1466]
[1750709459985,40.16,139.87,139.77,40.18]
[1750709460293,7.146,139.86,139.77,40.18]
[1750709460779,7.146,139.86,139.83,7.1468]
[1750709461485,40.16,139.87,139.77,40.18]
[1750709462480,40.16,139.87,139.86,7.1456]
[1750709462887,40.16,139.87,139.78,14.2993]
[1750709463180,40.16,139.87,139.85,7.1458]
[1750709464185,40.16,139.87,139.84,7.1464]
[1750709464383,47.3055,139.87,139.78,14.2993]
[1750709464685,40.16,139.87,139.78,14.2993]
[1750709464990,40.16,139.87,139.85,7.1458]
[1750709465476,40.16,139.87,139.78,14.2993]
[1750709465685,40.16,139.87,139.86,7.1456]
[1750709466075,47.3031,139.91,139.89,7.1437]
[1750709466379,40.16,139.93,139.82,4.8013]
[1750709466687,40.16,139.93,139.83,14.2941]
[1750709467190,47.3022,139.93,139.83,14.2941]
[1750709467683,7.1426,139.92,139.83,14.2941]
[1750709467887,40.16,139.93,139.82,7.0856]
[1750709468287,7.1439,139.9,139.82,7.0856]
[1750709468679,47.328,139.93,139.82,7.0856]
[1750709468881,7.1438,139.9,139.87,7.145]
[1750709469080,40.16,139.93,139.82,7.0856]
[1750709469388,7.1448,139.88,139.82,7.0856]
[1750709469688,47.2848,139.88,139.82,7.0856]
[1750709469882,47.2848,139.88,139.85,7.1457]
[1750709470491,47.2848,139.88,139.82,7.0856]
[1750709470688,40.14,139.88,139.82,7.0856]
[1750709471084,40.14,139.88,139.86,7.1452]
[1750709471288,40.14,139.88,139.82,7.0856]
[1750709471587,7.168,139.93,139.87,7.1451]
[1750709471783,40.14,139.91,139.82,7.0856]
[1750709472386,40.14,139.91,139.89,7.1438]
[1750709472584,40.14,139.91,139.82,7.0856]
[1750709472884,40.14,139.91,139.89,7.1436]
[1750709473184,40.14,139.91,139.82,7.0856]
[1750709473391,40.14,139.91,139.9,7.1435]
[1750709475787,617.9,139.94,139.84,39.96]
[1750709475979,39.96,140.0,139.85,145.38]
[1750709476680,39.96,140.0,139.87,14.2898]
[1750709476884,39.96,140.0,139.88,4.5518]
[1750709477085,11.37405534,139.99,139.96,7.1404]
[1750709477497,4.23485534,139.99,139.89,2.4056]
[1750709478096,4.23485534,139.99,139.98,7.1394]
[1750709478696,4.23485534,139.99,139.97,7.1397]
[1750709479091,4.23485534,139.99,139.89,2.4056]
[1750709479399,4.23485534,139.99,139.97,7.1397]
[1750709479603,4.23485534,139.99,139.92,41.6]
[1750709479901,4.23485534,139.99,139.98,7.1395]
[1750709480992,5.534e-05,139.99,139.98,7.1395]
[1750709481494,5.534e-05,139.99,139.98,14.1778]
[1750709481899,6.63629617,140.17,139.98,123.1783]
[1750709482204,626.00972427,140.19,139.98,116.0383]
[1750709482205,43.3,140.16,139.98,116.0383]
[1750709482395,43.3,140.16,139.99,140.70755534]
[1750709482705,43.3,140.16,139.99,126.42995534]
[1750709482900,660.44,140.19,140.15,7.1303]
[1750709483099,11.36295534,140.21,140.08,43.3]
[1750709483100,47.53485534,140.21,140.08,43.3]
[1750709483401,47.53485534,140.21,140.16,7.1298]
[1750709483586,47.53485534,140.21,140.09,50.3155]
[1750709483792,4.23485534,140.21,140.09,50.3155]
[1750709484293,4.23485534,140.21,140.1,62.0]
[1750709484803,616.82,140.35,140.1,7.14]
[1750709484999,48.04,140.35,140.1,8.63139279]
[1750709485204,48.04,140.38,140.14,8.63139279]
[1750709485404,48.04,140.38,140.29,7.1234]
[1750709485596,48.04,140.38,140.15,616.82]
[1750709485792,48.04,140.38,140.16,210.06]
[1750709486190,48.04,140.38,140.15,616.82]
[1750709486794,48.04,140.38,140.16,49.78]
[1750709486795,4.88053509,140.37,140.16,49.78]
[1750709487104,4.88053509,140.37,140.12,162.26]
[1750709487307,0.5434,140.36,140.13,52.02]
[1750709487509,0.5434,140.36,140.09,7.0155]
[1750709487809,0.5434,140.36,140.1,62.0]
[1750709488211,56.7,140.35,140.1,62.0]
[1750709488504,56.7,140.35,140.09,61.6555]
[1750709489300,63.5,140.34,140.09,61.6555]
[1750709489510,616.4,140.33,140.09,61.6555]
[1750709489915,63.5,140.32,140.09,61.6555]
[1750709490211,65.9304,140.32,140.09,7.0155]
[1750709490606,7.1281,140.21,140.15,7.1307]
[1750709490809,616.16,140.23,140.09,7.0155]
[1750709491004,2.4304,140.32,140.09,7.0155]
[1750709491005,65.62,140.22,140.09,7.0155]
[1750709491615,7.1281,140.21,140.15,7.1306]
[1750709491812,65.62,140.2,140.09,7.0155]
[1750709491997,2.4304,140.24,140.09,7.0155]
[1750709492314,68.22,140.25,140.09,7.0155]
[1750709492810,14.2377,140.39,140.09,7.0155]
[1750709493112,684.3,140.35,140.09,7.0155]
[1750709493301,7.1248,140.27,140.21,7.1273]
[1750709493504,68.22,140.27,140.13,68.22]
[1750709493703,68.22,140.27,140.21,7.1273]
[1750709493909,68.22,140.27,140.13,68.22]
[1750709494210,75.3448,140.27,140.21,7.1277]
[1750709494412,68.22,140.27,140.13,68.22]
[1750709494711,68.22,140.26,140.13,68.22]
[1750709494912,68.22,140.25,140.21,7.1273]
[1750709495105,68.22,140.24,140.13,68.22]
[1750709496002,68.22,140.24,140.22,7.1269]
[1750709496211,11.39,140.23,140.22,7.1269]
[1750709497807,11.39,140.23,140.21,7.1276]
[1750709498109,11.39,140.23,140.13,68.22]
[1750709498311,68.22,140.24,140.13,68.22]
[1750709498914,68.22,140.24,140.21,7.1273]
[1750709499209,2.2558,140.3,140.13,68.22]
[1750709499417,68.2,140.29,140.13,68.22]
[1750709499613,9.379,140.3,140.25,7.1255]
[1750709500218,75.3237,140.29,140.24,7.126]
[1750709500815,7.1243,140.28,140.23,7.1266]
[1750709501018,68.2,140.29,140.13,68.22]
[1750709501525,2.2558,140.3,140.13,68.22]
[1750709501718,68.2,140.29,140.13,68.22]
[1750709501914,68.2,140.29,140.24,7.1261]
[1750709502415,75.3241,140.29,140.24,7.1261]
[1750709502618,68.2,140.29,140.24,7.1261]
[1750709502821,68.2,140.29,140.25,7.1257]
[1750709503210,75.324,140.29,140.13,68.22]
[1750709503411,68.2,140.29,140.13,68.22]
[1750709504413,68.2,140.29,140.22,7.1269]
[1750709504623,18.4946,140.28,140.13,68.22]
[1750709504811,11.37,140.28,140.13,68.22]
[1750709505207,11.37,140.28,140.23,7.1266]
[1750709506019,11.37,140.28,140.24,7.1261]
[1750709506326,11.37,140.28,140.12,615.84]
[1750709506629,0.6864,140.28,140.14,21.47]
[1750709506813,0.6864,140.28,140.17,14.2587]
[1750709507124,68.8664,140.28,140.18,6.8485]
[1750709507626,2.4201,140.27,140.18,4.4615]
[1750709507823,2.9562,140.27,140.18,7.1291]
[1750709508012,7.1278,140.21,140.18,7.1291]
[1750709508220,68.18,140.2,140.12,4.4615]
[1750709508622,2.9562,140.27,140.12,4.4615]
[1750709508824,68.18,140.26,140.2,7.1281]
[1750709509325,68.18,140.26,140.19,7.1284]
[1750709509525,68.18,140.25,140.19,7.1284]
[1750709509725,68.18,140.25,140.12,4.4615]
[1750709509726,2.9562,140.27,140.12,4.4615]
[1750709510021,68.18,140.26,140.19,7.1285]
[1750709510214,7.1271,140.23,140.12,4.4615]
[1750709510819,75.3074,140.22,140.12,4.4615]
[1750709511123,68.18,140.21,140.12,4.4615]
[1750709511319,68.18,140.2,140.12,4.4615]
[1750709511516,68.18,140.21,140.12,4.4615]
[1750709511817,68.18,140.2,140.12,4.4615]
[1750709512517,68.18,140.2,140.17,7.1294]
[1750709514226,74.61278578,140.2,140.17,7.1294]
[1750709515414,67.48448578,140.2,140.12,4.4615]
[1750709515815,67.48448578,140.2,140.15,7.1303]
[1750709516123,67.48448578,140.2,140.12,4.4615]
[1750709516322,67.48448578,140.2,140.17,7.1294]
[1750709516515,67.48448578,140.2,140.12,4.4615]
[1750709517526,74.61288578,140.2,140.12,4.4615]
[1750709518226,67.48448578,140.2,140.12,4.4615]
[1750709518827,74.61308578,140.2,140.16,7.13]
[1750709519227,67.48448578,140.2,140.12,4.4615]
[1750709519421,66.24,140.25,140.12,4.4615]
[1750709521328,66.24,140.25,140.13,14.2636]
[1750709521533,66.24,140.25,140.12,4.4615]
[1750709521534,66.24,140.25,140.23,7.1266]
[1750709521731,66.24,140.25,140.12,4.4615]
[1750709521937,73.3658,140.25,140.22,7.127]
[1750709522134,66.24,140.25,140.12,4.4615]
[1750709522335,1.86,140.26,140.14,66.24]
[1750709522633,1.86,140.26,140.15,14.2614]
[1750709522834,1.86,140.26,140.16,62.0]
[1750709523532,1.86,140.26,140.25,7.1257]
[1750709523724,0.6864,140.28,140.2,66.22]
[1750709524031,66.22,140.34,140.21,4.76]
[1750709524731,515.88,140.37,140.22,14.2543]
[1750709525528,11.97361564,140.36,140.31,7.1224]
[1750709525733,11.97361564,140.36,140.22,14.2543]
[1750709526042,515.88,140.37,140.22,14.2543]
[1750709526226,4.85314612,140.36,140.33,7.1215]
[1750709526531,515.88,140.37,140.23,14.2535]
[1750709526728,7.1202,140.36,140.32,7.122]
[1750709526932,515.88,140.37,140.24,64.342]
[1750709527932,66.7592,140.39,140.36,7.1198]
[1750709528229,66.22,140.39,140.36,7.1198]
[1750709528532,66.22,140.39,140.35,7.1206]
[1750709528938,7.1191,140.38,140.34,7.121]
[1750709529140,66.22,140.39,140.25,66.22]
[1750709529432,0.73,140.38,140.35,7.1203]
[1750709529628,0.73,140.38,140.25,66.22]
[1750709530037,7.8496,140.38,140.33,7.1215]
[1750709530235,0.73,140.38,140.33,7.1215]
[1750709531137,0.73,140.38,140.25,66.2]
[1750709531645,4.24249232,140.41,140.25,66.2]
[1750709531838,4.24249232,140.41,140.27,14.2495]
[1750709532136,6.63629617,140.4,140.28,4.5089]
[1750709532337,6.63629617,140.37,140.24,2.342]
[1750709532539,693.16369617,140.36,140.22,4.5089]
[1750709532739,68.22,140.35,140.22,4.5089]
[1750709534242,68.22,140.35,140.28,7.1239]
[1750709534540,7.1225,140.32,140.28,7.1239]
[1750709534940,68.22,140.35,140.28,7.1239]
[1750709535540,7.1232,140.31,140.22,4.5089]
[1750709535847,68.22,140.32,140.22,4.5089]
[1750709536231,68.22,140.32,140.22,2.2399]
[1750709536544,68.22,140.32,140.22,7.1269]
[1750709536840,68.22,140.32,140.17,4.627]
[1750709537042,195.43629617,140.31,140.18,7.1289]
[1750709537245,195.43629617,140.31,140.11,68.22]
[1750709537246,11.47795439,140.3,140.11,70.5418]
[1750709537446,11.47795439,140.3,140.12,4.6691]
[1750709537749,9.08669617,140.29,140.12,4.6691]
[1750709537937,6.63629617,140.28,140.12,4.6691]
[1750709538137,615.46,140.27,140.18,7.1291]
[1750709538338,68.24,140.26,140.12,4.6691]
[1750709539340,7.1274,140.22,140.12,4.6691]
[1750709539545,68.24,140.26,140.12,4.6691]
[1750709540236,68.24,140.26,140.23,7.1264]
[1750709540440,68.24,140.26,140.12,13.30049279]
[1750709540842,68.24,140.26,140.25,7.1256]
[1750709542243,7.1223,140.32,140.17,14.259]
[1750709542446,2.8478,140.33,140.17,188.52]
[1750709542636,70.5468,140.33,140.18,2.257]
[1750709542944,70.5468,140.33,140.2,14.2558]
[1750709543243,70.5468,140.33,140.21,72.7765]
[1750709543448,615.64,140.37,140.21,72.7765]
[1750709543648,68.24,140.36,140.21,72.7765]
[1750709543847,68.24,140.36,140.31,7.1225]
[1750709544143,2.2268,140.38,140.21,72.7765]
[1750709544345,2.2268,140.38,140.22,8.63139279]
[1750709544536,9.3462,140.38,140.22,8.63139279]
[1750709544738,9.3462,140.38,140.23,22.88449279]
[1750709544944,68.24,140.4,140.22,8.63139279]
[1750709545144,68.24,140.4,140.24,14.2516]
[1750709545448,68.24,140.4,140.25,2.3489]
[1750709545654,7.1187,140.39,140.25,2.3489]
[1750709545855,7.1187,140.39,140.26,68.22]
[1750709546040,68.24,140.4,140.26,68.22]
[1750709546245,68.24,140.4,140.27,14.2493]
[1750709546548,68.24,140.4,140.28,62.0]
[1750709546549,75.3583,140.4,140.28,62.0]
[1750709546850,68.24,140.4,140.28,62.0]
[1750709547152,68.24,140.4,140.29,4.6675]
[1750709547545,68.24,140.4,140.35,7.1202]
[1750709548145,7.1188,140.39,140.35,7.1202]
[1750709548345,68.24,140.4,140.36,7.12]
[1750709548547,68.24,140.4,140.29,4.6675]
[1750709548746,7.1189,140.39,140.29,4.6675]
[1750709549052,7.1189,140.39,140.35,7.1203]
[1750709549242,75.3582,140.4,140.29,4.6675]
[1750709549443,68.24,140.4,140.29,4.6675]
[1750709549942,4.24249232,140.41,140.29,4.6675]
[1750709550360,11.36019232,140.41,140.3,62.0]
[1750709550543,11.36019232,140.41,140.37,7.1192]
[1750709550944,4.24249232,140.41,140.31,68.2]
[1750709551640,4.24249232,140.41,140.32,2.2164]
[1750709552750,4.24249232,140.41,140.4,7.118]
[1750709553155,4.24249232,140.41,140.32,2.2164]
[1750709553351,4.24249232,140.41,140.39,7.1182]
[1750709553552,4.24249232,140.41,140.32,2.2164]